Organisation Name,Organisation Code,Directorate/Service,Service Category Label,Service Code,Supplier Name,Supplier Reference,Payment Date,Transaction Number,Net Payments,Purpose of Spend
North West Leicestershire District Council,31UH,Planning & Development,Environment - Development Control,EDC,Alan Wood & Partners,A045454,04/09/2019,1383514,340.00,External Legal Fees & Advice
North West Leicestershire District Council,31UH,Street Management,Environment Transport,ENOT,Pd Supplies Ltd,A002198,04/09/2019,1383800,346.25,Vehicle Repairs/Parts
North West Leicestershire District Council,31UH,Finance,Exchequer Services,EXCH,Everyone Active,A045678,04/09/2019,1383807,"4,886.00",Premises Rents
North West Leicestershire District Council,31UH,Communications,Corporate - Customer Services,CS,Neopost Finance Limited,A031590,04/09/2019,1383836,"2,142.55",Equipment Operating Leases
North West Leicestershire District Council,31UH,Property Services,Property Facilities Management,PROPFM,DMW Environmental Safety Ltd,A044203,04/09/2019,1383843,380.65,Legal & Professional Services
North West Leicestershire District Council,31UH,Property Services,Property Facilities Management,PROPFM,DMW Environmental Safety Ltd,A044203,04/09/2019,1383848,304.52,Legal & Professional Services
North West Leicestershire District Council,31UH,Chief Exec,Chief Executive,CHEX,NPS Peterborough Ltd,A044569,04/09/2019,1383856,"3,437.90",Legal & Professional Services
North West Leicestershire District Council,31UH,Street Management,Environment - Street Scene,ESS,Metric Group Ltd (Sales),A028996,04/09/2019,1383861,261.00,Subscriptions
North West Leicestershire District Council,31UH,Finance,Revenues,REVS,Northgate Public Services Uk Ltd,A045302,04/09/2019,1383948,797.50,Legal & Professional Services
North West Leicestershire District Council,31UH,Street Management,Environment Waste Management,ENOWM,ESE World Limited,A001253,04/09/2019,1383327,"1,325.00",General Materials
North West Leicestershire District Council,31UH,Street Management,Environment Waste Management,ENOWM,One51 ES Plastics(UK) Ltd  t/a MGB Plastics,A044595,04/09/2019,1383604,"9,150.00",General Materials
North West Leicestershire District Council,31UH,Property Services,Property Facilities Management,PROPFM,Watertec Compliance Solutions Ltd,A044559,04/09/2019,1383759,819.99,Service Contracts - Premises costs
North West Leicestershire District Council,31UH,Information Technology,ICT Services,ICT,Sec-1,A036989,04/09/2019,1383765,"6,825.00",ICT Security
North West Leicestershire District Council,31UH,Street Management,Environment - Street Scene,ESS,SLH Planning Solutions Limited,A044102,04/09/2019,1383768,"4,254.60",Consultants Fees
North West Leicestershire District Council,31UH,Property Services,Property Facilities Management,PROPFM,John Merison BMC Ltd,A001092,04/09/2019,1383776,"3,950.38",General Repairs
North West Leicestershire District Council,31UH,Property Services,Property Commercial Lettings,PROPCL,Newton Fallowell,A036205,04/09/2019,1383779,"2,625.00",Legal & Professional Services
North West Leicestershire District Council,31UH,Information Technology,ICT Services,ICT,Dell Computer Corporation Ltd,A000470,04/09/2019,1383799,628.44,Computing
North West Leicestershire District Council,31UH,Street Management,Environment Transport,ENOT,Selby's Garage (Woodhouse) Ltd,A044011,04/09/2019,1383803,332.01,Hire Of Operational Equipment
North West Leicestershire District Council,31UH,Street Management,Environment Waste Management,ENOWM,Banana Kick,A045620,04/09/2019,1383804,"4,225.00",Publicity & Promotion
North West Leicestershire District Council,31UH,Property Services,Property Facilities Management,PROPFM,T Denman & Sons Ltd,A030887,04/09/2019,1383806,630.00,General Repairs
North West Leicestershire District Council,31UH,Finance,Revenues,REVS,Hinckley & Bosworth Borough Council,A000770,04/09/2019,1383812,"205,787.78",Shared Revs & Bens Partnership costs
North West Leicestershire District Council,31UH,Housing Repairs,HRA Housing Repairs & Maintenance,HRAHRM,Ward Recycling,A035471,04/09/2019,1383817,"1,027.95",Tipping Charges
North West Leicestershire District Council,31UH,Planning & Development,Environment - Development Control,EDC,Urban Design Doctor Ltd,A045292,04/09/2019,1383828,"6,827.45",Legal & Professional Services
North West Leicestershire District Council,31UH,Housing Repairs,HRA Housing Repairs & Maintenance,HRAHRM,Coalville Signs,A000370,04/09/2019,1382207,264.75,Signs & Notices
North West Leicestershire District Council,31UH,Street Management,Environment Transport,ENOT,Gilvar Lining Ltd,A040848,04/09/2019,1383824,"2,368.00",Road and Car Park Markings
North West Leicestershire District Council,31UH,Street Management,Environment Parks,ENOP,Harrison Flagpoles,A045036,04/09/2019,1383838,635.50,Operational Purchases
North West Leicestershire District Council,31UH,Street Management,Environment Waste Management,ENOWM,Hinckley & Bosworth Borough Council,A000770,04/09/2019,1383839,410.61,Asbestos removal
North West Leicestershire District Council,31UH,Property Services,Property Facilities Management,PROPFM,DMW Environmental Safety Ltd,A044203,04/09/2019,1383845,304.52,Legal & Professional Services
North West Leicestershire District Council,31UH,Chief Exec,Chief Executive,CHEX,IDP Group,A045557,04/09/2019,1383864,"3,750.00",Project Management Services
North West Leicestershire District Council,31UH,Chief Exec,Chief Executive,CHEX,Sable Leigh Consultancy Ltd T/A SLC Rail,A042727,04/09/2019,1383883,"3,115.60",Consultants Fees
North West Leicestershire District Council,31UH,Property Services,Property Commercial Lettings,PROPCL,Purchase Power,A008204,04/09/2019,1383942,"2,001.12",Postages
North West Leicestershire District Council,31UH,Information Technology,ICT Services,ICT,Idox Software Ltd,A034157,04/09/2019,1383947,446.77,Admin Equipment - Maintenance
North West Leicestershire District Council,31UH,Street Management,Environment Transport,ENOT,Accent Wire Ltd,A044269,04/09/2019,1383998,770.00,Operational Equipment
North West Leicestershire District Council,31UH,Street Management,Environment Transport,ENOT,Accent Wire Ltd,A044269,04/09/2019,1383999,770.00,Operational Equipment
North West Leicestershire District Council,31UH,Neighbourhoods & Communities,N & C Community Safety,NACCS,Etude,A045584,04/09/2019,1384000,"2,500.00",Consultants Fees
North West Leicestershire District Council,31UH,Property Services,Property Facilities Management,PROPFM,John Merison BMC Ltd,A001092,04/09/2019,1384004,"1,774.09",General Repairs
North West Leicestershire District Council,31UH,Property Services,Property Facilities Management,PROPFM,John Merison BMC Ltd,A001092,04/09/2019,1384005,322.54,General Repairs
North West Leicestershire District Council,31UH,Property Services,Property Facilities Management,PROPFM,John Merison BMC Ltd,A001092,04/09/2019,1384006,"1,237.55",General Repairs
North West Leicestershire District Council,31UH,Street Management,Environment - Street Scene,ESS,Nottingham City Council,A041558,11/09/2019,1383576,"34,860.00",Contract Payments (Other) Ext
North West Leicestershire District Council,31UH,Finance,Exchequer Services,EXCH,Insight Uk,A021505,11/09/2019,1383675,781.24,Computing
North West Leicestershire District Council,31UH,Housing,HRA Older Persons Service,HRAOPS,Tunstall Healthcare (UK) Limited,A001701,11/09/2019,1383816,"3,057.00",Alarm System Telephones
North West Leicestershire District Council,31UH,Communications,Corporate - Customer Services,CS,Neopost Limited,A000079,11/09/2019,1383830,"2,122.55",Equipment Operating Leases
North West Leicestershire District Council,31UH,Street Management,Environment Transport,ENOT,J F Lloyd & Sons,A000991,11/09/2019,1384011,260.00,Hire Of Operational Equipment
North West Leicestershire District Council,31UH,Street Management,Environment Transport,ENOT,Euro Car Parts,A034532,11/09/2019,1384014,480.00,Vehicle Repairs/Parts
North West Leicestershire District Council,31UH,Street Management,Environment Transport,ENOT,Anderson Commercials Limited,A033469,11/09/2019,1384015,336.00,Mot Testing
North West Leicestershire District Council,31UH,Street Management,Environment Transport,ENOT,Ford & Slater Group Ltd,A000625,11/09/2019,1384023,794.20,Vehicle Repairs/Parts
North West Leicestershire District Council,31UH,Street Management,Environment - Street Scene,ESS,4 Planning Delivers Ltd,A043779,11/09/2019,1384047,"2,100.00",Consultants Fees
North West Leicestershire District Council,31UH,Property Services,Property Facilities Management,PROPFM,Regarde Security Ltd,A013049,11/09/2019,1384053,275.20,Security Services
North West Leicestershire District Council,31UH,Property Services,Property Facilities Management,PROPFM,Regarde Security Ltd,A013049,11/09/2019,1384054,520.02,Security Services
North West Leicestershire District Council,31UH,Property Services,Property Facilities Management,PROPFM,Regarde Security Ltd,A013049,11/09/2019,1384055,550.40,Security Services
North West Leicestershire District Council,31UH,Property Services,Property Facilities Management,PROPFM,T Denman & Sons Ltd,A030887,11/09/2019,1384056,"1,299.18",General Repairs
North West Leicestershire District Council,31UH,Neighbourhoods & Communities,N & C Community Safety,NACCS,Etude,A045584,11/09/2019,1384057,"14,997.00",Consultants Fees
North West Leicestershire District Council,31UH,Property Services,Property Facilities Management,PROPFM,John Merison BMC Ltd,A001092,11/09/2019,1384067,702.37,General Repairs
North West Leicestershire District Council,31UH,Property Services,Property Commercial Lettings,PROPCL,Pitney Bowes Finance Plc,A032630,11/09/2019,1384068,289.88,Equipment Operating Leases
North West Leicestershire District Council,31UH,Property Services,Property Facilities Management,PROPFM,Regarde Security Ltd,A013049,11/09/2019,1384069,350.00,Security Services
North West Leicestershire District Council,31UH,Street Management,Environment Parks,ENOP,Regarde Security Ltd,A013049,11/09/2019,1384074,963.20,Security Services
North West Leicestershire District Council,31UH,Economic Development,Business Focus Group,BFG,Simon Foote Architects,A045677,11/09/2019,1384085,"1,200.00",Consultants Fees
North West Leicestershire District Council,31UH,Street Management,Environment Transport,ENOT,Westbury Industrial Supplies Limited,A009933,11/09/2019,1384090,627.70,Protective Clothing
North West Leicestershire District Council,31UH,Corporate Director,Human Resources,HR,Heartwood Conferencing Ltd,A041744,11/09/2019,1382683,324.50,Premises Hire
North West Leicestershire District Council,31UH,Finance,Exchequer Services,EXCH,Insight Uk,A021505,11/09/2019,1383676,"4,765.37",Computing
North West Leicestershire District Council,31UH,Housing Repairs,HRA Housing Repairs & Maintenance,HRAHRM,Michael Dyson Associates Ltd,A028431,11/09/2019,1384037,784.00,Consultants Fees
North West Leicestershire District Council,31UH,Housing Repairs,HRA Housing Repairs & Maintenance,HRAHRM,Michael Dyson Associates Ltd,A028431,11/09/2019,1384038,448.00,Consultants Fees
North West Leicestershire District Council,31UH,Street Management,Environment Transport,ENOT,Certas Energy Uk Ltd,A043448,11/09/2019,1384110,565.10,Fuel
North West Leicestershire District Council,31UH,Housing,HRA Housing Management,HRAHM,Aareon UK Ltd,A045197,11/09/2019,1384137,"2,610.00",Contract Payments (Other) Ext
North West Leicestershire District Council,31UH,Housing,HRA Housing Management,HRAHM,Aareon UK Ltd,A045197,11/09/2019,1384138,"3,480.00",Contract Payments (Other) Ext
North West Leicestershire District Council,31UH,Housing,HRA Housing Management,HRAHM,Aareon UK Ltd,A045197,11/09/2019,1384139,"3,480.00",Contract Payments (Other) Ext
North West Leicestershire District Council,31UH,Housing,HRA Housing Management,HRAHM,Aareon UK Ltd,A045197,11/09/2019,1384140,870.00,Contract Payments (Other) Ext
North West Leicestershire District Council,31UH,Housing,HRA Housing Management,HRAHM,Aareon UK Ltd,A045197,11/09/2019,1384141,"3,045.00",Contract Payments (Other) Ext
North West Leicestershire District Council,31UH,Housing,HRA Housing Management,HRAHM,Aareon UK Ltd,A045197,11/09/2019,1384142,870.00,Contract Payments (Other) Ext
North West Leicestershire District Council,31UH,Property Services,Property Commercial Lettings,PROPCL,Chameleon Pro Audio T/A Lux Technical Ltd,A027592,11/09/2019,1384146,367.50,General Repairs
North West Leicestershire District Council,31UH,Leisure & Culture,Sport & Physical Activity,SPA,Measham Leisure Centre,A027454,11/09/2019,1383866,"2,110.37",Measham LC Lifestyle DD
North West Leicestershire District Council,31UH,Corporate Director,Human Resources,HR,East Midlands Councils,A008942,11/09/2019,1384086,505.00,Corporate Training
North West Leicestershire District Council,31UH,Housing Repairs,HRA Housing Repairs & Maintenance,HRAHRM,Michael Dyson Associates Ltd,A028431,11/09/2019,1384104,"1,288.00",Consultants Fees
North West Leicestershire District Council,31UH,Housing,HRA Performance & Business Support,HRAPBS,Geoff Smith Associates Ltd,A041931,11/09/2019,1384108,904.12,Computing
North West Leicestershire District Council,31UH,Street Management,Environment Transport,ENOT,Certas Energy Uk Ltd,A043448,11/09/2019,1384109,"18,491.87",Fuel
North West Leicestershire District Council,31UH,Leisure & Culture,Sport & Physical Activity,SPA,"Oakthorpe, Donisthorpe & Acresford Parish Council",A038301,11/09/2019,1383872,"1,040.00",Premises Hire
North West Leicestershire District Council,31UH,Communications,Corporate - Customer Services,CS,Tunstall Healthcare (UK) Limited,A001701,11/09/2019,1384010,"1,828.08",Alarm System Telephones
North West Leicestershire District Council,31UH,Corporate Director,Human Resources,HR,Wider Plan Ltd,A043948,11/09/2019,1384096,"1,989.00",Staff Benefit Scheme
North West Leicestershire District Council,31UH,Leisure & Culture,Cultural Services Arts & Events,CULTEV,Reflec Signs & Graphics Ltd,A025348,11/09/2019,1384106,385.00,Event Expenditure
North West Leicestershire District Council,31UH,Leisure & Culture,Cultural Services TIC,CULTIC,Leicester Shire Promotions Ltd,A028765,11/09/2019,1384107,"4,000.00",Event Expenditure
North West Leicestershire District Council,31UH,Street Management,Environment Waste Management,ENOWM,Environment Media Group Ltd,A045305,11/09/2019,1384120,420.00,Training Expenses
North West Leicestershire District Council,31UH,Finance,Financial Planning,FINPLA,Venn Group Limited,A028530,11/09/2019,1384121,"1,520.00",Agency Staff
North West Leicestershire District Council,31UH,Street Management,Environment Transport,ENOT,R Massey & Son (Woodville) Ltd,A033258,11/09/2019,1384136,382.26,Vehicle Repairs/Parts
North West Leicestershire District Council,31UH,Information Technology,ICT Services,ICT,ACS Systems (UK) Ltd T/a ACS Office Solutions,A043447,11/09/2019,1384144,520.00,Admin Equipment - Hire/Rental
North West Leicestershire District Council,31UH,Information Technology,ICT Services,ICT,Freedom Communications (UK) Ltd,A032826,11/09/2019,1384152,"1,275.50",Telephone and Broadband
North West Leicestershire District Council,31UH,Street Management,Environment Waste Management,ENOWM,Something Different (UK) Ltd,A040393,11/09/2019,1384168,517.50,Publicity & Promotion
North West Leicestershire District Council,31UH,Property Services,Property Facilities Management,PROPFM,Admiral Cleaning Supplies Ltd,A040930,11/09/2019,1384042,794.81,Cleaning & Domestic Equipment
North West Leicestershire District Council,31UH,Property Services,Property Facilities Management,PROPFM,DMW Environmental Safety Ltd,A044203,11/09/2019,1384129,989.69,Legal & Professional Services
North West Leicestershire District Council,31UH,Property Services,Property Facilities Management,PROPFM,DMW Environmental Safety Ltd,A044203,11/09/2019,1384130,304.52,Legal & Professional Services
North West Leicestershire District Council,31UH,Housing,HRA Housing Management,HRAHM,Readings Property Group Ltd,A045486,18/09/2019,1383083,"1,235.00",Legal & Professional Services
North West Leicestershire District Council,31UH,Street Management,Environment - Street Scene,ESS,Metric Group Ltd (Repairs),A036055,18/09/2019,1383295,381.15,Maintenance Contract
North West Leicestershire District Council,31UH,Planning & Development,Environment Planning Policy,EPP,The Landscape Partnership,A044873,18/09/2019,1383821,406.00,External Legal Fees & Advice
North West Leicestershire District Council,31UH,Housing Repairs,HRA Housing Repairs & Maintenance,HRAHRM,City Electrical Factors Limited,A035306,18/09/2019,1383854,514.88,Operational Purchases
North West Leicestershire District Council,31UH,Housing Repairs,HRA Housing Repairs & Maintenance,HRAHRM,City Electrical Factors Limited,A035306,18/09/2019,1383855,723.94,Operational Purchases
North West Leicestershire District Council,31UH,Leisure & Culture,Sport & Physical Activity,SPA,Vitalyz Exercise Ltd,A041020,18/09/2019,1383869,"1,193.00",Training Course
North West Leicestershire District Council,31UH,Housing,HRA Housing Management,HRAHM,Readings Property Group Ltd,A045486,18/09/2019,1384041,760.00,Legal & Professional Services
North West Leicestershire District Council,31UH,Legal & Democratic,Civic Expenses,LDCE,Posh Nosh (East Midlands) Ltd,A035300,18/09/2019,1384134,427.00,Catering
North West Leicestershire District Council,31UH,Housing,HRA Housing Management,HRAHM,ECO Skip Hire Ltd,A041559,18/09/2019,1384149,310.00,General Repairs
North West Leicestershire District Council,31UH,Housing Strategy,Community - Housing Strategy,HS,MRC Community Action,A028442,18/09/2019,1384266,412.50,HRA Hardship Fund Expenditure
North West Leicestershire District Council,31UH,Planning & Development,Building Control,EBC,Resolution Data Management Ltd,A024994,18/09/2019,1384272,"1,394.00",Subscriptions
North West Leicestershire District Council,31UH,Street Management,Environment - Street Scene,ESS,Dynamic Development Services Limited,A043778,18/09/2019,1384278,"2,163.00",Consultants Fees
North West Leicestershire District Council,31UH,Street Management,Environment Transport,ENOT,Mobile Hydraulics Ltd,A001131,18/09/2019,1384283,317.32,Operational Purchases
North West Leicestershire District Council,31UH,Street Management,Environment - Street Scene,ESS,IDP Group,A045557,18/09/2019,1384317,618.75,Contract Payments (Other) Ext
North West Leicestershire District Council,31UH,Street Management,Environment - Street Scene,ESS,IDP Group,A045557,18/09/2019,1384318,"4,650.00",Contract Payments (Other) Ext
North West Leicestershire District Council,31UH,Planning & Development,Environment Planning Policy,EPP,DTA Ecology Ltd,A042148,18/09/2019,1384332,450.00,Legal & Professional Services
North West Leicestershire District Council,31UH,Information Technology,ICT Services,ICT,ACS Systems (UK) Ltd T/a ACS Office Solutions,A043447,18/09/2019,1382282,"6,000.00",Contract Payments (Other) Ext
North West Leicestershire District Council,31UH,Communications,Corporate - Communications,CP,The Copyright Licensing Agency,A011217,18/09/2019,1384087,883.74,Licences
North West Leicestershire District Council,31UH,Legal & Democratic,Civic Expenses,LDCE,Chameleon Pro Audio T/A Lux Technical Ltd,A027592,18/09/2019,1384263,510.90,Stationery
North West Leicestershire District Council,31UH,Information Technology,ICT Services,ICT,Canon UK Ltd,A040459,18/09/2019,1384271,291.50,General Operational Equipment
North West Leicestershire District Council,31UH,Corporate Director,Human Resources,HR,Halfords,A028298,18/09/2019,1384314,"1,203.33",Operational Equipment
North West Leicestershire District Council,31UH,Street Management,Environment - Street Scene,ESS,Mallard Consultancy Ltd,A039987,18/09/2019,1384315,990.00,Subscriptions
North West Leicestershire District Council,31UH,Street Management,Environment - Street Scene,ESS,Phonographic Performances Ltd,A001300,18/09/2019,1384321,396.47,Royalties
North West Leicestershire District Council,31UH,Finance,Financial Planning,FINPLA,CIPFA,A027467,18/09/2019,1384328,295.00,External Training
North West Leicestershire District Council,31UH,Information Technology,ICT Services,ICT,Six Degrees Technology Group Ltd,A044205,18/09/2019,1384386,"5,632.44",Admin Equipment - Maintenance
North West Leicestershire District Council,31UH,Information Technology,ICT Services,ICT,Chess Cybersecurity Formerly Foursys Ltd,A029908,18/09/2019,1384340,"1,215.00",Admin Equipment - Maintenance
North West Leicestershire District Council,31UH,Leisure & Culture,Sport & Physical Activity,SPA,Measham Leisure Centre,A027454,18/09/2019,1384357,"2,266.58",Measham LC Lifestyle DD
North West Leicestershire District Council,31UH,Street Management,Environment Waste Management,ENOWM,Weir & Carmichael Ltd,A032788,18/09/2019,1384393,"13,677.75",General Materials
North West Leicestershire District Council,31UH,Information Technology,ICT Services,ICT,Nviron Limited,A023640,18/09/2019,1384408,"1,500.00",Admin Equipment - Maintenance
North West Leicestershire District Council,31UH,Information Technology,ICT Services,ICT,Adept Telecom Plc,A044193,18/09/2019,1384420,"13,320.75",Admin Equipment - Maintenance
North West Leicestershire District Council,31UH,Leisure & Culture,Cultural Services Arts & Events,CULTEV,Estate Signs & Print Ltd,A045679,18/09/2019,1384277,800.00,Event Expenditure
North West Leicestershire District Council,31UH,Property Services,Property Facilities Management,PROPFM,Close Circuit Security Services,A043357,18/09/2019,1384488,"5,715.08",Contract Payments (Other) Ext
North West Leicestershire District Council,31UH,Information Technology,ICT Services,ICT,Cable & Wireless Worldwide,A038473,18/09/2019,1384495,"3,455.90",Admin Equipment - Maintenance
North West Leicestershire District Council,31UH,Housing,HRA Performance & Business Support,HRAPBS,Housemark Ltd,A033843,25/09/2019,1383440,"6,312.95",Subscriptions
North West Leicestershire District Council,31UH,Housing Repairs,HRA Housing Repairs & Maintenance,HRAHRM,Alliance Consulting Solutions Ltd,A043783,25/09/2019,1384364,"2,840.00",Consultants Fees
North West Leicestershire District Council,31UH,Street Management,Environment - Street Scene,ESS,ESPO,A000958,25/09/2019,1384366,354.00,Operational Equipment
North West Leicestershire District Council,31UH,Housing Strategy,Community - Housing Strategy,HS,Kabalous Hotel Leicester,A045521,25/09/2019,1384375,"1,638.00",Homelessness Prevention- Accomodation
North West Leicestershire District Council,31UH,Street Management,Environment Transport,ENOT,Watling JCB Ltd,A032114,25/09/2019,1384577,"2,330.00",Operational Equipment
North West Leicestershire District Council,31UH,Street Management,Environment Parks,ENOP,Tudor UK Ltd  (trading as Tudor Environmental),A043777,25/09/2019,1384582,294.45,Operational Purchases
North West Leicestershire District Council,31UH,Neighbourhoods & Communities,N & C Community Safety,NACCS,Ashby Life Limited,A032236,25/09/2019,1384583,272.00,Free Tree Scheme
North West Leicestershire District Council,31UH,Information Technology,ICT Services,ICT,ACS Systems (UK) Ltd T/a ACS Office Solutions,A043447,25/09/2019,1384591,"1,250.00",Admin Equipment - Hire/Rental
North West Leicestershire District Council,31UH,Corporate Director,Human Resources,HR,Delib,A039059,25/09/2019,1384595,"2,400.00",Corporate Training
North West Leicestershire District Council,31UH,Corporate Director,Human Resources,HR,Health Management Ltd,A038840,25/09/2019,1384596,"1,403.40",Occupational Health Fees
North West Leicestershire District Council,31UH,Environmental Health,Environmental Health & Licensing,EEHL,Chine House Veterinary Hospital,A041398,25/09/2019,1384597,335.00,Vet Inspection
North West Leicestershire District Council,31UH,Street Management,Environment Transport,ENOT,Lee Wells Autobodies Ltd,A031849,25/09/2019,1384608,430.00,Non Insurance Damage
North West Leicestershire District Council,31UH,Information Technology,ICT Services,ICT,Freedom Communications (UK) Ltd,A032826,25/09/2019,1384621,400.00,Telephone and Broadband
North West Leicestershire District Council,31UH,Corporate Director,Human Resources,HR,Leicestershire County Council Pension Fund,A028310,25/09/2019,1384624,"3,812.13",Added Years/Capital Cost
North West Leicestershire District Council,31UH,Housing Repairs,HRA Housing Repairs & Maintenance,HRAHRM,Bersche-Rolt Limited,A045483,25/09/2019,1384626,"1,416.74",Consultants Fees
North West Leicestershire District Council,31UH,Housing Repairs,HRA Housing Repairs & Maintenance,HRAHRM,Ward Recycling,A035471,25/09/2019,1384628,496.13,Tipping Charges
North West Leicestershire District Council,31UH,Information Technology,ICT Services,ICT,Premier Paper Group,A042438,25/09/2019,1384629,672.57,Consumable Materials
North West Leicestershire District Council,31UH,Street Management,Environment Waste Management,ENOWM,Scarab Sweepers Limited,A001445,25/09/2019,1384644,495.00,Training Expenses
North West Leicestershire District Council,31UH,Corporate Director,Human Resources,HR,Learning Pool Ltd,A039508,25/09/2019,1384647,"12,500.00",Subscriptions
North West Leicestershire District Council,31UH,Street Management,Environment Transport,ENOT,Spaldings (UK) Limited,A001540,25/09/2019,1384664,409.87,Scheduled Servicing - Parts
North West Leicestershire District Council,31UH,Legal & Democratic,Legal Services,LDLS,Oadby & Wigston Borough Council,A001232,25/09/2019,1384584,250.00,Legal & Professional Services
North West Leicestershire District Council,31UH,Street Management,Environment Transport,ENOT,Drive Vauxhall,A038406,25/09/2019,1384606,497.90,Non Scheduled Maintenance - Parts
North West Leicestershire District Council,31UH,Chief Exec,Chief Executive,CHEX,Abbots Oak Country House,A031131,25/09/2019,1384619,300.00,Subsistence - Employees
North West Leicestershire District Council,31UH,Corporate Director,Human Resources,HR,Investors in People,A045140,25/09/2019,1384639,"7,074.74",Corporate Training
North West Leicestershire District Council,31UH,Housing,HRA Housing Management,HRAHM,Aareon UK Ltd,A045197,25/09/2019,1384669,870.00,Contract Payments (Other) Ext
North West Leicestershire District Council,31UH,Housing,HRA Housing Management,HRAHM,Aareon UK Ltd,A045197,25/09/2019,1384670,435.00,Contract Payments (Other) Ext
North West Leicestershire District Council,31UH,Housing,HRA Housing Management,HRAHM,Aareon UK Ltd,A045197,25/09/2019,1384671,870.00,Contract Payments (Other) Ext
North West Leicestershire District Council,31UH,Housing,HRA Housing Management,HRAHM,Aareon UK Ltd,A045197,25/09/2019,1384672,870.00,Contract Payments (Other) Ext
North West Leicestershire District Council,31UH,Housing,HRA Housing Management,HRAHM,Aareon UK Ltd,A045197,25/09/2019,1384673,870.00,Contract Payments (Other) Ext
North West Leicestershire District Council,31UH,Housing,HRA Housing Management,HRAHM,Aareon UK Ltd,A045197,25/09/2019,1384674,870.00,Contract Payments (Other) Ext
North West Leicestershire District Council,31UH,Housing,HRA Housing Management,HRAHM,Aareon UK Ltd,A045197,25/09/2019,1384675,870.00,Contract Payments (Other) Ext
North West Leicestershire District Council,31UH,Housing,HRA Housing Management,HRAHM,Aareon UK Ltd,A045197,25/09/2019,1384676,870.00,Contract Payments (Other) Ext
North West Leicestershire District Council,31UH,Housing,HRA Housing Management,HRAHM,Aareon UK Ltd,A045197,25/09/2019,1384677,388.00,Contract Payments (Other) Ext
North West Leicestershire District Council,31UH,Housing,HRA Housing Management,HRAHM,Aareon UK Ltd,A045197,25/09/2019,1384678,"2,175.00",Contract Payments (Other) Ext
North West Leicestershire District Council,31UH,Housing,HRA Housing Management,HRAHM,Aareon UK Ltd,A045197,25/09/2019,1384679,485.00,Contract Payments (Other) Ext
North West Leicestershire District Council,31UH,Housing,HRA Housing Management,HRAHM,Aareon UK Ltd,A045197,25/09/2019,1384680,"1,740.00",Contract Payments (Other) Ext
North West Leicestershire District Council,31UH,Housing,HRA Housing Management,HRAHM,Aareon UK Ltd,A045197,25/09/2019,1384681,"20,343.75",Contract Payments (Other) Ext
North West Leicestershire District Council,31UH,Street Management,Environment Waste Management,ENOWM,Reflec Signs & Graphics Ltd,A025348,25/09/2019,1383324,640.00,Publicity & Promotion
North West Leicestershire District Council,31UH,Street Management,Environment Waste Management,ENOWM,Data Academy Ltd,A043706,25/09/2019,1384641,295.00,Training Expenses
North West Leicestershire District Council,31UH,Finance,Financial Planning,FINPLA,Leicestershire County Council,A000950,04/09/2019,1383770,"4,935.82",Parking Levy
North West Leicestershire District Council,31UH,Housing Repairs,HRA Housing Repairs & Maintenance,HRAHRM,PPG Architectural Coatings Ltd,A000876,04/09/2019,1383772,"2,035.11",Internal Decorations
North West Leicestershire District Council,31UH,Housing Repairs,HRA Housing Repairs & Maintenance,HRAHRM,Sure Maintenance Ltd,A040460,04/09/2019,1383784,"1,164.80",Plumbing & Heating
North West Leicestershire District Council,31UH,Housing,HRA Housing Management,HRAHM,Leicestershire County Council,A000950,04/09/2019,1383814,"9,232.04",Contract Cleaning
North West Leicestershire District Council,31UH,Finance,Exchequer Services,EXCH,Click Travel Ltd,A044308,04/09/2019,1383818,"2,531.71",Travel and Accomodation
North West Leicestershire District Council,31UH,Planning & Development,Environment - Development Control,EDC,Urban Design Doctor Ltd,A045292,04/09/2019,1383829,"1,427.50",Legal & Professional Services
North West Leicestershire District Council,31UH,Finance,Exchequer Services,EXCH,Comensura Limited,A036958,04/09/2019,1383831,"17,227.86",Agency Staff
North West Leicestershire District Council,31UH,Information Technology,ICT Services,ICT,Canon UK Ltd,A040459,04/09/2019,1383841,383.37,Equipment Operating Leases
North West Leicestershire District Council,31UH,Information Technology,ICT Services,ICT,Canon UK Ltd,A040459,04/09/2019,1383858,"2,194.02",Photo Copier - Copy Charges Rental
North West Leicestershire District Council,31UH,Property Services,Property Commercial Lettings,PROPCL,Water Plus Limited,A044043,04/09/2019,1383860,"1,009.55",Water Charges (Metered)
North West Leicestershire District Council,31UH,Leisure & Culture,Cultural Services TIC,CULTIC,Roberts Coaches Limited,A017327,04/09/2019,1383867,326.00,Coach tickets/tours
North West Leicestershire District Council,31UH,Housing Repairs,HRA Housing Repairs & Maintenance,HRAHRM,DMW Environmental Safety Ltd,A044203,04/09/2019,1383949,"1,165.28",Legal & Professional Services
North West Leicestershire District Council,31UH,Corporate Director,Human Resources,HR,Inchcape Fleet Solutions,A039405,04/09/2019,1383994,"7,416.49",Vehicle Leasing
North West Leicestershire District Council,31UH,Housing,HRA Housing Management,HRAHM,I-Clean,A034116,04/09/2019,1384001,774.00,Cleaning & Domestic Equipment
North West Leicestershire District Council,31UH,Information Technology,ICT Services,ICT,GE Capital Equipment Finance Ltd,A017429,11/09/2019,1384048,339.08,Equipment Operating Leases
North West Leicestershire District Council,31UH,Street Management,Environment Waste Management,ENOWM,SUEZ Recycling and Recovery UK Ltd,A001108,11/09/2019,1384071,262.14,Tipping Charges
North West Leicestershire District Council,31UH,Property Services,Property Facilities Management,PROPFM,Water Plus Limited,A044043,11/09/2019,1384078,874.85,Water Charges (Metered)
North West Leicestershire District Council,31UH,Finance,Exchequer Services,EXCH,Click Travel Ltd,A044308,11/09/2019,1384083,"2,109.80",Travel and Accomodation
North West Leicestershire District Council,31UH,Information Technology,ICT Services,ICT,EE Ltd (Airtime),A018592,11/09/2019,1384091,"3,476.32",Mobile Telephones
North West Leicestershire District Council,31UH,Information Technology,ICT Services,ICT,EE Ltd (Airtime),A018592,11/09/2019,1384092,"2,553.27",Mobile Telephones
North West Leicestershire District Council,31UH,Finance,Exchequer Services,EXCH,Comensura Limited,A036958,11/09/2019,1384095,"29,071.03",Agency Staff
North West Leicestershire District Council,31UH,Housing Repairs,HRA Housing Repairs & Maintenance,HRAHRM,Morgan Lambert Limited,A044192,11/09/2019,1384103,359.10,Consultants Fees
North West Leicestershire District Council,31UH,Legal & Democratic,Legal Services,LDLS,SLCC Enterprises Ltd,A044280,11/09/2019,1384105,"1,377.00",Conference
North West Leicestershire District Council,31UH,Information Technology,ICT Services,ICT,Virgin Media Business,A008908,11/09/2019,1384112,319.90,Telephone and Broadband
North West Leicestershire District Council,31UH,Legal & Democratic,Legal Services,LDLS,Browne Jacobson LLP,A000251,11/09/2019,1384123,736.00,Legal & Professional Services
North West Leicestershire District Council,31UH,Property Services,Property Commercial Lettings,PROPCL,British Telecommunications Plc,A000233,11/09/2019,1384151,545.72,Telephones
North West Leicestershire District Council,31UH,Legal & Democratic,Legal Services,LDLS,Shakespeare Martineau,A041538,11/09/2019,1384153,"1,210.50",External Legal Fees & Advice
North West Leicestershire District Council,31UH,Information Technology,ICT Services,ICT,Park Place Technologies,A045525,11/09/2019,1384170,"2,469.38",Admin Equipment - Maintenance
North West Leicestershire District Council,31UH,Leisure Centres,Hood Park Leisure Centre,HPLC,Lift & Engineering Services Ltd,A042320,11/09/2019,1384238,407.50,Service Contracts
North West Leicestershire District Council,31UH,Leisure Centres,Hermitage Leisure Centre,HLC,Lift & Engineering Services Ltd,A042320,11/09/2019,1384239,491.75,Service Contracts
North West Leicestershire District Council,31UH,Housing,HRA Housing Management,HRAHM,Redacted- Personal data,A045689,11/09/2019,1384246,500.00,Compensation
North West Leicestershire District Council,31UH,Street Management,Environment Parks,ENOP,Harrison Flagpoles,A045036,11/09/2019,1384247,635.50,Operational Purchases
North West Leicestershire District Council,31UH,Housing,HRA Housing Management,HRAHM,H M C S,A033868,12/09/2019,1384287,"1,217.00",Legal & Professional Services
North West Leicestershire District Council,31UH,Finance,Exchequer Services,EXCH,Department for Communities & Local Government,A028518,12/09/2019,1384289,"1,229,666.00",Subsidy Receipts & Repayments
North West Leicestershire District Council,31UH,Finance,Exchequer Services,EXCH,Leicestershire County Council,A000950,12/09/2019,1384292,"4,399,445.00",Precept
North West Leicestershire District Council,31UH,Finance,Financial Planning,FINPLA,The Office of the Police and Crime Commissioner for Leicestershire,A007096,12/09/2019,1384294,"759,432.57",Precept
North West Leicestershire District Council,31UH,Finance,Financial Planning,FINPLA,"Leicester, Leicestershire & Rutland Combined Fire Authority",A028339,12/09/2019,1384296,"226,911.00",Precept
North West Leicestershire District Council,31UH,Finance,Financial Planning,FINPLA,Leicestershire County Council,A000950,12/09/2019,1384298,"3,208,668.00",Precept
North West Leicestershire District Council,31UH,Finance,Financial Planning,FINPLA,Scottish Widows Investment Partnerhiip,A039247,12/09/2019,1384312,"5,500,000.00",Policy Lending
North West Leicestershire District Council,31UH,Finance,Financial Planning,FINPLA,Blackrock Cash Management,A039249,12/09/2019,1384313,"1,200,000.00",Policy Lending
North West Leicestershire District Council,31UH,Finance,Financial Planning,FINPLA,Goldman Sachs Money Market Fund,A039248,12/09/2019,1384316,"1,000,000.00",Policy Lending
North West Leicestershire District Council,31UH,Finance,Financial Planning,FINPLA,Barclays Mercantile Business,A003940,12/09/2019,1384319,"93,122.17",Policy Lending
North West Leicestershire District Council,31UH,Finance,Financial Planning,FINPLA,Leeds Building Society,A042130,12/09/2019,1384320,"1,500,000.00",Policy Lending
North West Leicestershire District Council,31UH,Finance,Exchequer Services,EXCH,Severn Trent Water Limited,A042250,12/09/2019,1384322,549.00,Conveyancing Searches
North West Leicestershire District Council,31UH,Finance,Exchequer Services,EXCH,DVLA,A042250,12/09/2019,1384323,410.00,MOT
North West Leicestershire District Council,31UH,Corporate Director,Human Resources,HR,The Disclosure & Barring Service,A027625,12/09/2019,1384325,264.00,DBS Checks
North West Leicestershire District Council,31UH,Finance,Financial Planning,FINPLA,Kingston-Upon-Hull City Council,A045171,12/09/2019,1384326,"3,000,000.00",Policy Lending
North West Leicestershire District Council,31UH,Legal & Democratic,Legal Services,LDLS,No 5 Chambers Ltd,A022238,18/09/2019,1384262,500.00,Legal & Professional Services
North West Leicestershire District Council,31UH,Legal & Democratic,Electoral & Land Charges,LDELC,SCI Print Limited,A028974,18/09/2019,1384273,648.00,External printing
North West Leicestershire District Council,31UH,Housing,HRA Housing Management,HRAHM,AIM Mediation Ltd,A041734,18/09/2019,1384276,603.75,Legal & Professional Services
North West Leicestershire District Council,31UH,Street Management,Environment Transport,ENOT,Johnsons Cars Ltd,A045691,18/09/2019,1384352,625.00,Non Insurance Damage
North West Leicestershire District Council,31UH,Environmental Health,Environmental Services,EES,Hinckley & Bosworth Borough Council,A000770,18/09/2019,1384355,666.66,External Legal Fees & Advice
North West Leicestershire District Council,31UH,Street Management,Environment Transport,ENOT,Boc Limited,A000193,18/09/2019,1384360,321.61,Operational Purchases
North West Leicestershire District Council,31UH,Communications,Corporate - Customer Services,CS,Neopost Limited,A000079,18/09/2019,1384371,"4,000.00",Postages
North West Leicestershire District Council,31UH,Street Management,Environment - Street Scene,ESS,Water Plus Limited,A044043,18/09/2019,1384376,356.35,Water Charges (Metered)
North West Leicestershire District Council,31UH,Housing,HRA Housing Management,HRAHM,JLA Limited,A043639,18/09/2019,1384377,694.00,Cleaning & Domestic Equipment
North West Leicestershire District Council,31UH,Housing,HRA Housing Management,HRAHM,JLA Limited,A043639,18/09/2019,1384378,442.00,Cleaning & Domestic Equipment
North West Leicestershire District Council,31UH,Housing,HRA Housing Management,HRAHM,JLA Limited,A043639,18/09/2019,1384379,442.00,Cleaning & Domestic Equipment
North West Leicestershire District Council,31UH,Housing,HRA Housing Management,HRAHM,JLA Limited,A043639,18/09/2019,1384380,744.00,Contract Cleaning
North West Leicestershire District Council,31UH,Housing,HRA Housing Management,HRAHM,JLA Limited,A043639,18/09/2019,1384381,302.00,Contract Cleaning
North West Leicestershire District Council,31UH,Housing,HRA Housing Management,HRAHM,JLA Limited,A043639,18/09/2019,1384382,442.00,Contract Cleaning
North West Leicestershire District Council,31UH,Housing,HRA Housing Management,HRAHM,JLA Limited,A043639,18/09/2019,1384383,282.00,Contract Cleaning
North West Leicestershire District Council,31UH,Finance,Exchequer Services,EXCH,Click Travel Ltd,A044308,18/09/2019,1384385,"2,108.51",Travel and Accomodation
North West Leicestershire District Council,31UH,Environmental Health,Environmental Services,EES,College Garth Ltd T/A College Garth Kennels,A000385,18/09/2019,1384401,"2,232.46",Stray Dog Service
North West Leicestershire District Council,31UH,Housing,HRA Housing Management,HRAHM,JLA Limited,A043639,18/09/2019,1384415,302.00,Cleaning & Domestic Equipment
North West Leicestershire District Council,31UH,Housing,HRA Housing Management,HRAHM,JLA Limited,A043639,18/09/2019,1384416,412.00,Cleaning & Domestic Equipment
North West Leicestershire District Council,31UH,Housing,HRA Housing Management,HRAHM,JLA Limited,A043639,18/09/2019,1384417,442.00,Cleaning & Domestic Equipment
North West Leicestershire District Council,31UH,Housing,HRA Housing Management,HRAHM,JLA Limited,A043639,18/09/2019,1384418,694.00,Cleaning & Domestic Equipment
North West Leicestershire District Council,31UH,Legal & Democratic,Legal Services,LDLS,University Vocational Awards Council,A045693,18/09/2019,1384421,600.00,Conference
North West Leicestershire District Council,31UH,Neighbourhoods & Communities,N & C Neighbourhoods,NACN,Hugglescote & Donington Allotments,A037029,18/09/2019,1384491,500.00,Grants
North West Leicestershire District Council,31UH,Neighbourhoods & Communities,N & C Neighbourhoods,NACN,Donisthorpe Youth Club,A045697,18/09/2019,1384492,500.00,Grants
North West Leicestershire District Council,31UH,Information Technology,ICT Services,ICT,Cable & Wireless Worldwide,A038473,18/09/2019,1384494,-492.88,Admin Equipment - Maintenance
North West Leicestershire District Council,31UH,Housing,HRA Housing Management,HRAHM,Summers Inman,A045259,18/09/2019,1384496,"2,406.00",Legal & Professional Services
North West Leicestershire District Council,31UH,Housing,HRA Housing Management,HRAHM,Water Plus Limited,A044043,18/09/2019,1384497,"1,651.01",Water Charges (Metered)
North West Leicestershire District Council,31UH,Housing,HRA Housing Management,HRAHM,Water Plus Limited,A044043,18/09/2019,1384498,"2,302.34",Water Charges (Metered)
North West Leicestershire District Council,31UH,Housing,HRA Housing Management,HRAHM,Water Plus Limited,A044043,18/09/2019,1384502,429.73,Water Charges (Metered)
North West Leicestershire District Council,31UH,Finance,Exchequer Services,EXCH,ESPO,A000958,19/09/2019,1384528,"16,303.46",Gas
North West Leicestershire District Council,31UH,Finance,Exchequer Services,EXCH,ESPO,A000958,19/09/2019,1384529,"5,492.72",Gas
North West Leicestershire District Council,31UH,Finance,Exchequer Services,EXCH,ESPO,A000958,19/09/2019,1384530,"4,666.82",Gas
North West Leicestershire District Council,31UH,Finance,Exchequer Services,EXCH,Health and safety Executive,A042250,19/09/2019,1384531,"1,960.00",Legal & Professional Services
North West Leicestershire District Council,31UH,Housing,HRA Housing Management,HRAHM,H M C S,A033868,19/09/2019,1384533,"2,071.00",Legal & Professional Services
North West Leicestershire District Council,31UH,Finance,Exchequer Services,EXCH,Vodafone Limited,A001861,19/09/2019,1384534,"1,041.55",Mobile Telephones
North West Leicestershire District Council,31UH,Finance,Exchequer Services,EXCH,Total Gas & Power,A033385,19/09/2019,1384536,"15,300.39",Electricity
North West Leicestershire District Council,31UH,Finance,Financial Planning,FINPLA,Guildford Borough Council,A044456,19/09/2019,1384538,"3,000,000.00",Policy Lending
North West Leicestershire District Council,31UH,Finance,Financial Planning,FINPLA,Goldman Sachs Money Market Fund,A039248,19/09/2019,1384539,"2,700,000.00",Policy Lending
North West Leicestershire District Council,31UH,Finance,Financial Planning,FINPLA,Blackrock Cash Management,A039249,19/09/2019,1384540,"7,400,000.00",Policy Lending
North West Leicestershire District Council,31UH,Finance,Financial Planning,FINPLA,Scottish Widows Investment Partnerhiip,A039247,19/09/2019,1384541,"2,700,000.00",Policy Lending
North West Leicestershire District Council,31UH,Finance,Financial Planning,FINPLA,Worthington Parish Council,A001813,25/09/2019,1384542,"4,921.25",Precept
North West Leicestershire District Council,31UH,Finance,Financial Planning,FINPLA,Whitwick Parish Council,A038617,25/09/2019,1384543,"146,140.25",Precept
North West Leicestershire District Council,31UH,Finance,Financial Planning,FINPLA,Swepstone Parish Council,A001613,25/09/2019,1384544,"8,716.50",Precept
North West Leicestershire District Council,31UH,Finance,Financial Planning,FINPLA,Swannington Parish Council,A001608,25/09/2019,1384545,"10,530.50",Precept
North West Leicestershire District Council,31UH,Finance,Financial Planning,FINPLA,Snarestone Parish Council,A001524,25/09/2019,1384547,"5,000.00",Precept
North West Leicestershire District Council,31UH,Finance,Financial Planning,FINPLA,Ravenstone With Snibston PC,A001364,25/09/2019,1384548,"28,322.00",Precept
North West Leicestershire District Council,31UH,Finance,Financial Planning,FINPLA,Packington Parish Council,A001257,25/09/2019,1384549,"10,579.00",Precept
North West Leicestershire District Council,31UH,Finance,Financial Planning,FINPLA,Osgathorpe Parish Council,A001251,25/09/2019,1384550,"2,118.75",Precept
North West Leicestershire District Council,31UH,Finance,Financial Planning,FINPLA,"Oakthorpe, Donisthorpe &",A001234,25/09/2019,1384551,"28,000.00",Precept
North West Leicestershire District Council,31UH,Finance,Financial Planning,FINPLA,Measham Parish Council,A001082,25/09/2019,1384552,"59,324.50",Precept
North West Leicestershire District Council,31UH,Finance,Financial Planning,FINPLA,Long Whatton & Diseworth PC,A001010,25/09/2019,1384553,"19,945.00",Precept
North West Leicestershire District Council,31UH,Finance,Financial Planning,FINPLA,Lockington Cum Hemington PC,A000999,25/09/2019,1384554,"6,336.50",Precept
North West Leicestershire District Council,31UH,Finance,Financial Planning,FINPLA,Kegworth Parish Council,A000882,25/09/2019,1384555,"55,754.75",Precept
North West Leicestershire District Council,31UH,Finance,Financial Planning,FINPLA,Ibstock Parish Council,A000807,25/09/2019,1384557,"101,299.75",Precept
North West Leicestershire District Council,31UH,Finance,Financial Planning,FINPLA,Heather Parish Council,A000749,25/09/2019,1384559,"6,193.25",Precept
North West Leicestershire District Council,31UH,Finance,Financial Planning,FINPLA,Ellistown And Battleflat Parish Council,A021576,25/09/2019,1384560,"31,869.10",Precept
North West Leicestershire District Council,31UH,Finance,Financial Planning,FINPLA,Coleorton Parish Council,A000382,25/09/2019,1384561,"7,220.25",Precept
North West Leicestershire District Council,31UH,Finance,Financial Planning,FINPLA,Charley Parish Council,A000322,25/09/2019,1384562,"2,072.00",Precept
North West Leicestershire District Council,31UH,Finance,Financial Planning,FINPLA,Castle Donington Parish Council,A000300,25/09/2019,1384563,"170,122.00",Precept
North West Leicestershire District Council,31UH,Finance,Financial Planning,FINPLA,Breedon On The Hill Parish Council,A000215,25/09/2019,1384564,"12,218.75",Precept
North West Leicestershire District Council,31UH,Finance,Financial Planning,FINPLA,Belton Parish Council,A000164,25/09/2019,1384565,"11,946.75",Precept
North West Leicestershire District Council,31UH,Finance,Financial Planning,FINPLA,Ashby Woulds Town Council,A000089,25/09/2019,1384566,"58,600.75",Precept
North West Leicestershire District Council,31UH,Finance,Financial Planning,FINPLA,Ashby De La Zouch Town Council,A000091,25/09/2019,1384567,"227,090.25",Precept
North West Leicestershire District Council,31UH,Finance,Financial Planning,FINPLA,Appleby Magna Parish Council,A000060,25/09/2019,1384568,"9,500.00",Precept
North West Leicestershire District Council,31UH,Finance,Financial Planning,FINPLA,Hugglescote & Donington Le Heath,A038616,25/09/2019,1384685,"56,876.50",Precept
North West Leicestershire District Council,31UH,Finance,Exchequer Services,EXCH,Comensura Limited,A036958,25/09/2019,1384592,"32,259.36",Agency Staff
North West Leicestershire District Council,31UH,Neighbourhoods & Communities,N & C Neighbourhoods,NACN,Whitwick Parish Council,A038617,25/09/2019,1384598,500.00,Grants
North West Leicestershire District Council,31UH,Neighbourhoods & Communities,N & C Neighbourhoods,NACN,Measham Village Hall,A028419,25/09/2019,1384599,500.00,Grants
North West Leicestershire District Council,31UH,Street Management,Environment Waste Management,ENOWM,SUEZ Recycling and Recovery UK Ltd,A001108,25/09/2019,1384614,281.27,Tipping Charges
North West Leicestershire District Council,31UH,Legal & Democratic,Legal Services,LDLS,Act Now Training Ltd,A030708,25/09/2019,1384622,389.00,Training Course
North West Leicestershire District Council,31UH,Legal & Democratic,Legal Services,LDLS,Act Now Training Ltd,A030708,25/09/2019,1384623,389.00,Training Course
North West Leicestershire District Council,31UH,Finance,Exchequer Services,EXCH,Comensura Limited,A036958,25/09/2019,1384763,"30,349.28",Agency Staff
North West Leicestershire District Council,31UH,Housing,HRA Housing Management,HRAHM,Redacted- Personal data,A045711,25/09/2019,1384769,"1,000.00",Under Occupancy Incentives
North West Leicestershire District Council,31UH,Housing,HRA Housing Management,HRAHM,Redacted- Personal data,A045710,25/09/2019,1384770,"1,000.00",Decant Payment
North West Leicestershire District Council,31UH,Communications,Corporate - Customer Services,CS,Neopost Limited,A000079,25/09/2019,1384771,"1,874.47",Postages
North West Leicestershire District Council,31UH,Planning & Development,Environment Planning Policy,EPP,Urban Design Group,A023359,25/09/2019,1384772,350.00,Advertising
North West Leicestershire District Council,31UH,Housing Repairs,HRA Housing Repairs & Maintenance,HRAHRM,Sure Maintenance Ltd,A040460,25/09/2019,1384774,"8,098.62",Plumbing & Heating
North West Leicestershire District Council,31UH,Housing Repairs,HRA Housing Repairs & Maintenance,HRAHRM,Sure Maintenance Ltd,A040460,25/09/2019,1384775,750.00,Plumbing & Heating
North West Leicestershire District Council,31UH,Housing Repairs,HRA Housing Repairs & Maintenance,HRAHRM,Sure Maintenance Ltd,A040460,25/09/2019,1384776,901.22,Plumbing & Heating
North West Leicestershire District Council,31UH,Housing Repairs,HRA Housing Repairs & Maintenance,HRAHRM,Sure Maintenance Ltd,A040460,25/09/2019,1384780,561.78,Plumbing & Heating
North West Leicestershire District Council,31UH,Housing Repairs,HRA Housing Repairs & Maintenance,HRAHRM,Sure Maintenance Ltd,A040460,25/09/2019,1384791,"18,670.04",Plumbing & Heating
North West Leicestershire District Council,31UH,Housing Repairs,HRA Housing Repairs & Maintenance,HRAHRM,European Asbestos Services Ltd,A045507,25/09/2019,1384792,"73,730.94",Contract Payments (Other) Ext
North West Leicestershire District Council,31UH,Housing Repairs,HRA Housing Repairs & Maintenance,HRAHRM,Everwarm Limited,A044582,25/09/2019,1384793,"162,521.48",Contract Payments (Dws) Ext
North West Leicestershire District Council,31UH,Finance,Exchequer Services,EXCH,Sports & Leisure Management Ltd,A045556,25/09/2019,1384794,"74,362.15",Contract Payments (Other) Ext
North West Leicestershire District Council,31UH,Finance,Exchequer Services,EXCH,Kings Armoured Security Services Ltd,A004468,25/09/2019,1384795,"1,090.13",Cash in Transit Service
North West Leicestershire District Council,31UH,Leisure & Culture,Sport & Physical Activity,SPA,"Oakthorpe, Donisthorpe & Acresford Parish Council",A001234,25/09/2019,1384797,"1,040.00",Premises Hire
North West Leicestershire District Council,31UH,Housing Repairs,HRA Housing Repairs & Maintenance,HRAHRM,Severn Trent Water Limited,A001468,04/09/2019,1383951,366.71,Water Connections and Services
North West Leicestershire District Council,31UH,Housing Repairs,HRA Housing Repairs & Maintenance,HRAHRM,Severn Trent Water Limited,A001468,04/09/2019,1383953,861.20,Water Connections and Services
North West Leicestershire District Council,31UH,Housing Repairs,HRA Housing Repairs & Maintenance,HRAHRM,Severn Trent Water Limited,A001468,04/09/2019,1383954,967.97,Water Connections and Services
North West Leicestershire District Council,31UH,Housing Repairs,HRA Housing Repairs & Maintenance,HRAHRM,Severn Trent Water Limited,A001468,04/09/2019,1383955,431.45,Water Connections and Services
North West Leicestershire District Council,31UH,Housing Repairs,HRA Housing Repairs & Maintenance,HRAHRM,Severn Trent Water Limited,A001468,04/09/2019,1383956,431.45,Water Connections and Services
North West Leicestershire District Council,31UH,Housing Repairs,HRA Housing Repairs & Maintenance,HRAHRM,Laker BMS Ltd,A031787,04/09/2019,1383957,710.75,Housing Repairs
North West Leicestershire District Council,31UH,Housing Repairs,HRA Housing Repairs & Maintenance,HRAHRM,Laker BMS Ltd,A031787,04/09/2019,1383958,862.88,Housing Repairs
North West Leicestershire District Council,31UH,Housing Repairs,HRA Housing Repairs & Maintenance,HRAHRM,Emperor Scaffolding Limited,A038405,04/09/2019,1383959,375.00,Hire Of Operational Equipment
North West Leicestershire District Council,31UH,Housing Repairs,HRA Housing Repairs & Maintenance,HRAHRM,Emperor Scaffolding Limited,A038405,04/09/2019,1383960,300.00,Hire Of Operational Equipment
North West Leicestershire District Council,31UH,Housing Repairs,HRA Housing Repairs & Maintenance,HRAHRM,Laker BMS Ltd,A031787,04/09/2019,1383963,265.50,Housing Repairs
North West Leicestershire District Council,31UH,Housing Repairs,HRA Housing Repairs & Maintenance,HRAHRM,Laker BMS Ltd,A031787,04/09/2019,1383965,554.50,Housing Repairs
North West Leicestershire District Council,31UH,Housing Repairs,HRA Housing Repairs & Maintenance,HRAHRM,H20 Utilities Ltd,A043865,04/09/2019,1383966,"2,200.00",Associated Drainage Services
North West Leicestershire District Council,31UH,Housing Repairs,HRA Housing Repairs & Maintenance,HRAHRM,H20 Utilities Ltd,A043865,04/09/2019,1383967,700.00,Associated Drainage Services
North West Leicestershire District Council,31UH,Housing Repairs,HRA Housing Repairs & Maintenance,HRAHRM,H20 Utilities Ltd,A043865,04/09/2019,1383968,"1,900.00",Associated Drainage Services
North West Leicestershire District Council,31UH,Housing Repairs,HRA Housing Repairs & Maintenance,HRAHRM,Premier Mobility UK Ltd,A045304,04/09/2019,1383969,"1,245.00",Contract Payments (Dws) Ext
North West Leicestershire District Council,31UH,Housing Repairs,HRA Housing Repairs & Maintenance,HRAHRM,Orbis Property Protection Ltd,A028149,04/09/2019,1383970,334.43,Void Property Clearance Services
North West Leicestershire District Council,31UH,Housing Repairs,HRA Housing Repairs & Maintenance,HRAHRM,Orbis Property Protection Ltd,A028149,04/09/2019,1383972,658.57,Void Property Clearance Services
North West Leicestershire District Council,31UH,Housing Repairs,HRA Housing Repairs & Maintenance,HRAHRM,Orbis Property Protection Ltd,A028149,04/09/2019,1383976,270.64,Void Property Clearance Services
North West Leicestershire District Council,31UH,Housing Repairs,HRA Housing Repairs & Maintenance,HRAHRM,Orbis Property Protection Ltd,A028149,04/09/2019,1383977,"1,394.31",Void Property Clearance Services
North West Leicestershire District Council,31UH,Housing Repairs,HRA Housing Repairs & Maintenance,HRAHRM,Orbis Property Protection Ltd,A028149,04/09/2019,1383978,509.37,Void Property Clearance Services
North West Leicestershire District Council,31UH,Housing Repairs,HRA Housing Repairs & Maintenance,HRAHRM,Orbis Property Protection Ltd,A028149,04/09/2019,1383979,839.69,Void Property Clearance Services
North West Leicestershire District Council,31UH,Housing Repairs,HRA Housing Repairs & Maintenance,HRAHRM,Orbis Property Protection Ltd,A028149,04/09/2019,1383984,291.22,Void Property Clearance Services
North West Leicestershire District Council,31UH,Housing Repairs,HRA Housing Repairs & Maintenance,HRAHRM,Laker BMS Ltd,A031787,04/09/2019,1383985,449.00,Housing Repairs
North West Leicestershire District Council,31UH,Housing Repairs,HRA Housing Repairs & Maintenance,HRAHRM,H20 Utilities Ltd,A043865,04/09/2019,1383986,700.00,Associated Drainage Services
North West Leicestershire District Council,31UH,Housing Repairs,HRA Housing Repairs & Maintenance,HRAHRM,Timber-Link Fencing Ltd,A033297,04/09/2019,1383987,644.00,External Contractor Payments
North West Leicestershire District Council,31UH,Housing Repairs,HRA Housing Repairs & Maintenance,HRAHRM,Timber-Link Fencing Ltd,A033297,04/09/2019,1383988,680.00,External Contractor Payments
North West Leicestershire District Council,31UH,Housing Repairs,HRA Housing Repairs & Maintenance,HRAHRM,Timber-Link Fencing Ltd,A033297,04/09/2019,1383989,360.00,External Contractor Payments
North West Leicestershire District Council,31UH,Housing Repairs,HRA Housing Repairs & Maintenance,HRAHRM,Timber-Link Fencing Ltd,A033297,04/09/2019,1383990,590.00,External Contractor Payments
North West Leicestershire District Council,31UH,Housing Repairs,HRA Housing Repairs & Maintenance,HRAHRM,Timber-Link Fencing Ltd,A033297,04/09/2019,1383991,590.00,External Contractor Payments
North West Leicestershire District Council,31UH,Housing Repairs,HRA Housing Repairs & Maintenance,HRAHRM,Timber-Link Fencing Ltd,A033297,04/09/2019,1384007,"1,010.00",External Contractor Payments
North West Leicestershire District Council,31UH,Housing Repairs,HRA Housing Repairs & Maintenance,HRAHRM,TECSERV UK LIMITED,A028261,11/09/2019,1384248,"1,075.00",Door Entry Systems
North West Leicestershire District Council,31UH,Housing Repairs,HRA Housing Repairs & Maintenance,HRAHRM,Premier Mobility UK Ltd,A045304,11/09/2019,1384249,"2,090.00",Contract Payments (Dws) Ext
North West Leicestershire District Council,31UH,Housing Repairs,HRA Housing Repairs & Maintenance,HRAHRM,Severn Trent Water Limited,A001468,11/09/2019,1384253,"1,447.58",Water Connections and Services
North West Leicestershire District Council,31UH,Housing Repairs,HRA Housing Repairs & Maintenance,HRAHRM,Severn Trent Water Limited,A001468,11/09/2019,1384254,"1,447.58",Water Connections and Services
North West Leicestershire District Council,31UH,Housing Repairs,HRA Housing Repairs & Maintenance,HRAHRM,Emperor Scaffolding Limited,A038405,11/09/2019,1384257,390.00,Hire Of Operational Equipment
North West Leicestershire District Council,31UH,Housing Repairs,HRA Housing Repairs & Maintenance,HRAHRM,Laker BMS Ltd,A031787,11/09/2019,1384258,"2,553.42",Housing Repairs
North West Leicestershire District Council,31UH,Housing Repairs,HRA Housing Repairs & Maintenance,HRAHRM,Laker BMS Ltd,A031787,11/09/2019,1384259,"4,602.55",Housing Repairs
North West Leicestershire District Council,31UH,Housing Repairs,HRA Housing Repairs & Maintenance,HRAHRM,Timber-Link Fencing Ltd,A033297,18/09/2019,1384479,380.00,External Contractor Payments
North West Leicestershire District Council,31UH,Housing Repairs,HRA Housing Repairs & Maintenance,HRAHRM,Timber-Link Fencing Ltd,A033297,18/09/2019,1384480,"1,110.00",External Contractor Payments
North West Leicestershire District Council,31UH,Housing Repairs,HRA Housing Repairs & Maintenance,HRAHRM,Timber-Link Fencing Ltd,A033297,18/09/2019,1384481,"2,546.00",External Contractor Payments
North West Leicestershire District Council,31UH,Housing Repairs,HRA Housing Repairs & Maintenance,HRAHRM,Timber-Link Fencing Ltd,A033297,18/09/2019,1384482,"1,550.00",External Contractor Payments
North West Leicestershire District Council,31UH,Housing Repairs,HRA Housing Repairs & Maintenance,HRAHRM,Timber-Link Fencing Ltd,A033297,18/09/2019,1384483,980.00,External Contractor Payments
North West Leicestershire District Council,31UH,Housing Repairs,HRA Housing Repairs & Maintenance,HRAHRM,Timber-Link Fencing Ltd,A033297,18/09/2019,1384484,"2,300.00",External Contractor Payments
North West Leicestershire District Council,31UH,Housing Repairs,HRA Housing Repairs & Maintenance,HRAHRM,Orbis Property Protection Ltd,A028149,18/09/2019,1384504,455.87,Void Property Clearance Services
North West Leicestershire District Council,31UH,Housing Repairs,HRA Housing Repairs & Maintenance,HRAHRM,Premier Mobility UK Ltd,A045304,18/09/2019,1384510,"8,830.00",Contract Payments (Dws) Ext
North West Leicestershire District Council,31UH,Housing Repairs,HRA Housing Repairs & Maintenance,HRAHRM,Fire Proof Ltd,A039911,18/09/2019,1384512,750.00,Fire Equipment and servicing
North West Leicestershire District Council,31UH,Housing Repairs,HRA Housing Repairs & Maintenance,HRAHRM,Orbis Property Protection Ltd,A028149,18/09/2019,1384513,261.38,Void Property Clearance Services
North West Leicestershire District Council,31UH,Housing Repairs,HRA Housing Repairs & Maintenance,HRAHRM,Orbis Property Protection Ltd,A028149,18/09/2019,1384518,418.82,Void Property Clearance Services
North West Leicestershire District Council,31UH,Housing Repairs,HRA Housing Repairs & Maintenance,HRAHRM,Orbis Property Protection Ltd,A028149,18/09/2019,1384519,"1,309.94",Void Property Clearance Services
North West Leicestershire District Council,31UH,Housing Repairs,HRA Housing Repairs & Maintenance,HRAHRM,Laker BMS Ltd,A031787,18/09/2019,1384523,"2,393.35",Housing Repairs
North West Leicestershire District Council,31UH,Housing Repairs,HRA Housing Repairs & Maintenance,HRAHRM,Laker BMS Ltd,A031787,18/09/2019,1384524,289.00,Housing Repairs
North West Leicestershire District Council,31UH,Housing Repairs,HRA Housing Repairs & Maintenance,HRAHRM,Timber-Link Fencing Ltd,A033297,25/09/2019,1384630,"2,090.00",External Contractor Payments
North West Leicestershire District Council,31UH,Housing Repairs,HRA Housing Repairs & Maintenance,HRAHRM,Timber-Link Fencing Ltd,A033297,25/09/2019,1384631,"1,327.50",External Contractor Payments
North West Leicestershire District Council,31UH,Housing Repairs,HRA Housing Repairs & Maintenance,HRAHRM,Timber-Link Fencing Ltd,A033297,25/09/2019,1384632,"2,000.00",External Contractor Payments
North West Leicestershire District Council,31UH,Housing Repairs,HRA Housing Repairs & Maintenance,HRAHRM,Timber-Link Fencing Ltd,A033297,25/09/2019,1384633,"2,022.00",External Contractor Payments
North West Leicestershire District Council,31UH,Housing Repairs,HRA Housing Repairs & Maintenance,HRAHRM,Timber-Link Fencing Ltd,A033297,25/09/2019,1384634,"1,740.00",External Contractor Payments
North West Leicestershire District Council,31UH,Housing Repairs,HRA Housing Repairs & Maintenance,HRAHRM,Timber-Link Fencing Ltd,A033297,25/09/2019,1384635,465.00,External Contractor Payments
North West Leicestershire District Council,31UH,Housing Repairs,HRA Housing Repairs & Maintenance,HRAHRM,Timber-Link Fencing Ltd,A033297,25/09/2019,1384636,450.00,External Contractor Payments
North West Leicestershire District Council,31UH,Housing Repairs,HRA Housing Repairs & Maintenance,HRAHRM,Timber-Link Fencing Ltd,A033297,25/09/2019,1384637,"2,400.00",External Contractor Payments
North West Leicestershire District Council,31UH,Housing Repairs,HRA Housing Repairs & Maintenance,HRAHRM,Timber-Link Fencing Ltd,A033297,25/09/2019,1384638,680.00,External Contractor Payments
North West Leicestershire District Council,31UH,Housing Repairs,HRA Housing Repairs & Maintenance,HRAHRM,Timber-Link Fencing Ltd,A033297,25/09/2019,1384799,"1,660.00",External Contractor Payments
North West Leicestershire District Council,31UH,Finance,Exchequer Services,EXCH,Hotel Balmoral,A042250,12/09/2019,1384322,275.00,Travel and Accomodation
North West Leicestershire District Council,31UH,Finance,Exchequer Services,EXCH,CIPFA,A042250,19/09/2019,1384531,290.00,Training Course
